[Event "XVII Profigaia Open 2017"]
[Site "Gaia"]
[Date "2017.06.17"]
[Round "6"]
[White "Pedroso, Manuel"]
[Black "De Moura, Fernando Alves"]
[Result "0-1"]
[ECO "A57"]
[WhiteElo "1285"]
[BlackElo "1814"]
[Annotator "NA RC"]
[PlyCount "64"]
[EventDate "2017.??.??"]
[EventType "swiss"]
[EventCountry "POR"]
[SourceTitle "playchess.com"]
[Source "ChessBase"]
[SourceQuality "1"]
[TimeControl "5400+30"]

{[%evp 9,59,2,32767,32767,32767,32767,32767,-17,5,-87,-85,32767,-60,-79,-81,-71,-16,-28,51,5,98,-86,-87,-391,-397,-458,-455,-542,-554,-559,0,-375,-369,-363,-350,-439,-470,-452,-255,-504,-466,-473,-472,-2046,-2735,-2452,-29986,32767,32767,32767,32767,-29995]} 1. d4 Nf6 2. c4 c5 3. d5 b5 4. b3 bxc4 5. bxc4 g6 6. Nc3 {A57: Benko/Volga Gambit} d6 7. Bf4 $146 ({Predecessor:} 7. e4 Bg7 8. Rb1 Nbd7 9. Nf3 Ng4 10. Bb2 Rb8 11. Nb5 Bxb2 12. Rxb2 a6 13. Nxd6+ exd6 14. Rxb8 Nxb8 {0-1 (30) Boitsov,G (2148)-Zakaryan,D (2191) Lazarevskoe 2014}) 7... Bg7 8. Rc1 O-O 9. e3 (9. e4 $11) 9... Qa5 10. Qd2 Na6 11. Nf3 Rb8 12. Be2 Bd7 13. O-O Nc7 (13... Qa3 $11) 14. h3 Qa3 {[#]} (14... Nh5 $11 {remains equal.}) 15. Rb1 $2 (15. e4 $1 $16) 15... Nh5 16. Bh2 $2 (16. Nb5 $17 Nxb5 17. cxb5) 16... Bxc3 17. Qc1 Bb2 18. Qd2 $1 $11 Bf5 19. Rbd1 Bd7 $2 (19... Nf6 $19 20. g4 Bd7) 20. e4 $2 Ba4 21. Rb1 Rb6 22. g4 Nf6 23. e5 Nd7 (23... Ne4 $142 24. Qd3 Nc3) 24. Qh6 $2 (24. exd6 {is the only way for White.} exd6 25. Bxd6 Rxd6 26. Rxb2) 24... Rfb8 25. Ng5 Nf8 26. f4 (26. Nf3 $142) 26... Bd4+ 27. Kh1 Rxb1 28. f5 Rxf1+ 29. Bxf1 Qc1 30. Kg2 Rb2+ 31. Kg3 Qe1+ 32. Kf4 Qe3# 0-1

[Event "XVII Profigaia Open 2017"]
[Site "Gaia"]
[Date "2017.06.17"]
[Round "6"]
[White "Soares, Sara Joana De Moura"]
[Black "Moura, Paulo Jorge Alves B"]
[Result "1-0"]
[ECO "B30"]
[WhiteElo "1183"]
[BlackElo "1913"]
[Annotator "NA RC"]
[PlyCount "47"]
[EventDate "2017.??.??"]
[EventType "swiss"]
[EventCountry "POR"]
[SourceTitle "playchess.com"]
[Source "ChessBase"]
[SourceQuality "1"]
[TimeControl "5400+30"]

{[%evp 17,47,-81,32767,32767,-49,-72,-49,-65,-42,-66,-69,-77,-60,-76,-35,32767,32767,-87,-82,-87,-87,-85,-28,-22,-30,-117,-9,0,0,0,-8,-73]} 1. e4 {[%emt 0:00:00]} c5 {[%emt 0:00:11]} 2. Nf3 {[%emt 0:00:00]} Nc6 {[%emt 0:00:29]} 3. Nc3 {[%emt 0:00:32]} d6 {[%emt 0:00:18]} 4. d3 {[%emt 0:02:22]} Nf6 {[%emt 0:00:34]} 5. Be2 {[%emt 0:02:44]} g6 {[%emt 0:00:49]} 6. Be3 {[%emt 0:01:30]} Bg7 {[%emt 0:01:13]} 7. O-O {[%emt 0:01:07]} O-O {[%emt 0:00:24]} 8. Qd2 {[%emt 0:02:45] B50: Sicilian: 2...d6, Miscellaneous} Ng4 {[%emt 0:03:53]} 9. h3 {[%emt 0:11:03]} (9. Bg5 $11) 9... Nxe3 {[%emt 0:04:39]} 10. fxe3 {[%emt 0:01:25]} e6 {[%emt 0:02:17]} 11. Rad1 $146 {[%emt 0:06:44]} ({Predecessor:} 11. Rab1 d5 12. exd5 exd5 {0-1 (44) Merenyi,G (2130)-Felegyhazi,L (2306) Hungary 2009}) 11... Ne5 {[%emt 0:04:26]} 12. Nxe5 {[%emt 0:07:02]} Bxe5 {[%emt 0:00:27]} 13. Bf3 {[%emt 0:01:12]} a6 {[%emt 0:04:35]} 14. a4 {[%emt 0:02:36]} Bd7 {[%emt 0:04:12]} 15. b3 {[%emt 0:02:05]} b5 {[%emt 0:01:44]} 16. axb5 {[%emt 0:02:42]} axb5 {[%emt 0:03:19]} 17. Ne2 {[%emt 0:01:16]} b4 {[%emt 0:01:21]} 18. d4 {[%emt 0:02:24]} cxd4 {[%emt 0:19:09]} 19. exd4 {[%emt 0:00:35]} Bg7 {[%emt 0:01:14]} (19... Qb6 $17) 20. Qxb4 {[%emt 0:00:41]} Qc7 {[%emt 0:02:18]} 21. Qc3 {[%emt 0:01:52]} (21. Qd2 $11) 21... Qb6 {[%emt 0:05:33]} (21... Qxc3 $17 22. Nxc3 Rac8) 22. Kh1 {[%emt 0:01:34]} Bb5 {[%emt 0:02:38]} 23. Rfe1 {[%emt 0:01:55]} Rfc8 {[%emt 0:04:37]} 24. Qb2 $17 {[%emt 0:03:24]} (24. Qb4 $11 Rxc2 25. Nc3) 1-0

[Event "XVII Profigaia Open 2017"]
[Site "Gaia"]
[Date "2017.06.17"]
[Round "6"]
[White "Amorim, Vicente Nuno Marque"]
[Black "Pinto, Pedro Jorge de Mora"]
[Result "1-0"]
[ECO "B06"]
[WhiteElo "1084"]
[BlackElo "2038"]
[Annotator "NA RC"]
[PlyCount "105"]
[EventDate "2017.??.??"]
[EventType "swiss"]
[EventCountry "POR"]
[SourceTitle "playchess.com"]
[Source "ChessBase"]
[SourceQuality "1"]
[TimeControl "5400+30"]

{[%evp 14,96,-12,0,20,0,32767,32767,32767,32767,32767,32767,32767,41,109,100,32767,32767,0,-18,-14,-14,170,-19,51,0,38,6,43,32767,32767,32767,32767,32767,32767,-50,0,-135,-132,-171,-145,-219,-183,-202,-180,-172,-129,32767,-135,-125,-100,-94,-122,-179,-97,-122,-73,-185,-16,-82,-70,-77,-99,-45,0,-66,-78,-45,-68,-542,550,1256,1158,1287,1191,5314,1349,156,836,2135,5397,1612,29995,12842,29989]} 1. e4 g6 {[%emt 0:00:07]} 2. Nc3 {[%emt 0:00:15]} Bg7 3. Nf3 {[%emt 0:00:28]} d6 {[%emt 0:00:24]} 4. h3 {[%emt 0:00:18] B06: Modern Defence} c5 {[%emt 0:00:15]} 5. Be2 {[%emt 0:01:01]} Nc6 {[%emt 0:00:10]} 6. d3 {[%emt 0:01:04]} Nf6 {[%emt 0:00:07]} 7. O-O {[%emt 0:00:28]} O-O {[%emt 0:00:42]} 8. Be3 {[%emt 0:00:55]} Bd7 {[%emt 0:00:10]} 9. d4 {[%emt 0:00:50]} cxd4 {[%emt 0:00:55]} 10. Nxd4 {[%emt 0:00:13]} Qb6 $146 {[%emt 0:00:59]} ({Predecessor:} 10... a6 11. Qd2 Rc8 12. Rfd1 b5 13. a3 Re8 14. f3 Qc7 15. a4 b4 16. Nd5 Nxd5 17. exd5 Nxd4 18. Bxd4 Bxd4+ 19. Qxd4 {0-1 (50) Byambaa,Z (2285)-Guseinov,G (2631) Khanty-Mansiysk 2013}) 11. Ne6 {[%emt 0:02:59]} Qxb2 {[%emt 0:00:15]} 12. Nxf8 {[%emt 0:01:29]} Rxf8 {[%emt 0:00:21]} 13. Qd2 {[%emt 0:07:42]} Ne8 {[%emt 0:01:47]} ({Better is} 13... Ng4 $14 14. Bxg4 Bxc3) 14. Nd5 {[%emt 0:09:11]} e6 {[%emt 0:01:25]} 15. Rfb1 {[%emt 0:01:38]} Qe5 {[%emt 0:08:08]} 16. Nb4 {[%emt 0:13:04]} Qxe4 {[%emt 0:05:25]} 17. c3 {[%emt 0:00:31]} Nc7 $2 {[%emt 0:03:15]} (17... b6 $11 {and Black stays safe.}) 18. Nxc6 $2 {[%emt 0:02:17]} (18. Qxd6 $18 Nxb4 19. Qxd7 (19. Rxb4 Qc6 $14) 19... Bxc3 20. Qxc7) 18... Qxc6 {[%emt 0:02:07]} (18... Bxc6 $11 19. f3 Qd5) 19. Rc1 {[%emt 0:01:25]} Nd5 {[%emt 0:00:18]} 20. Bd4 {[%emt 0:00:51]} Rc8 {[%emt 0:01:54]} 21. Bxg7 {[%emt 0:03:34]} Kxg7 {[%emt 0:00:09]} 22. c4 {[%emt 0:00:27]} Nb6 {[%emt 0:00:12]} 23. Qd4+ {[%emt 0:00:27]} e5 {[%emt 0:00:27]} 24. Qd3 {[%emt 0:01:56]} Be6 {[%emt 0:00:18]} (24... Na4 $15) 25. c5 {[%emt 0:06:53]} (25. Qa3 $11 {keeps the balance.}) 25... dxc5 {[%emt 0:00:39]} 26. Qg3 {[%emt 0:00:38]} (26. Qc3 $17 {might work better.}) 26... f6 {[%emt 0:01:22]} 27. a3 {[%emt 0:00:32]} (27. Qa3 $17) 27... Nd5 {[%emt 0:00:44]} 28. Bf3 {[%emt 0:01:20]} Rd8 {[%emt 0:00:41]} 29. Rd1 {[%emt 0:01:20]} Qc7 {[%emt 0:00:57]} 30. Rd2 {[%emt 0:03:19]} Rd7 {[%emt 0:04:57]} (30... Nf4 $19 {is more deadly.} 31. Rxd8 Qxd8) 31. Bxd5 {[%emt 0:01:11]} Rxd5 {[%emt 0:00:15]} 32. Rxd5 {[%emt 0:01:02]} Bxd5 {[%emt 0:00:07]} 33. Qd3 {[%emt 0:00:34]} (33. Rd1 $17 Be6 34. a4) 33... Be6 {[%emt 0:02:07]} 34. Qe3 {[%emt 0:00:43]} b5 {[%emt 0:02:07]} (34... Qc6 $142 35. Re1 Bd5) 35. Qe2 {[%emt 0:02:10] [#]} (35. f4 $1 $15) 35... Qa5 $2 {[%emt 0:00:44]} (35... c4 $1 $19 36. Qe3 a6) 36. Qf3 {[%emt 0:02:38]} (36. f4 $11 {remains equal.}) 36... Qb6 {[%emt 0:00:21]} 37. a4 {[%emt 0:00:38]} b4 {[%emt 0:00:55]} 38. a5 {[%emt 0:01:10]} Qd6 {[%emt 0:01:16]} 39. Rd1 {[%emt 0:00:42]} (39. Qb7+ $11 Qd7 40. Qxd7+ Bxd7 41. Rc1) 39... Qc7 {[%emt 0:00:18]} 40. a6 {[%emt 0:00:27]} Bc8 {[%emt 0:00:18]} 41. Qd3 $2 {[%emt 0:00:58]} ({White should try} 41. Qe3 $15) 41... Bxa6 $4 {[%emt 0:01:22]} (41... c4 $19 {avoids the disaster.} 42. Qc2 Qc5) 42. Qxa6 {[%emt 0:00:22]} c4 {[%emt 0:00:14]} 43. Qe6 {[%emt 0:00:59]} Kh6 {[%emt 0:00:42]} 44. Qxf6 {[%emt 0:00:18]} c3 {[%emt 0:00:29]} 45. Qh4+ $2 {[%emt 0:00:30]} (45. Qf8+ $18 Qg7 46. Qxb4) 45... Kg7 {[%emt 0:00:17]} 46. Qxb4 {[%emt 0:00:09]} a5 {[%emt 0:01:45]} 47. Qa3 {[%emt 0:00:23]} Qb6 {[%emt 0:01:18]} 48. Qxc3 {[%emt 0:00:21]} (48. Qe7+ $142 Kg8 49. Rd7 Qb1+ 50. Kh2 Qg1+ 51. Kxg1 Kh8 52. Qxh7#) 48... Qb5 {[%emt 0:00:52]} 49. Ra1 {[%emt 0:00:28]} a4 {[%emt 0:00:23]} 50. Qa3 {[%emt 0:00:13]} e4 {[%emt 0:00:16]} 51. Qxa4 {[%emt 0:00:14]} Qe2 {[%emt 0:00:07]} 52. Qa7+ {[%emt 0:00:15]} Kh6 {[%emt 0:00:11]} 53. Qe3+ {[%emt 0:00:24]} 1-0

[Event "XVII Profigaia Open 2017"]
[Site "Gaia"]
[Date "2017.06.17"]
[Round "6"]
[White "Paiva, Rodrigo Garcia"]
[Black "Clemente, António Manuel"]
[Result "1/2-1/2"]
[ECO "C44"]
[WhiteElo "1075"]
[BlackElo "1393"]
[Annotator "NA RC"]
[PlyCount "98"]
[EventDate "2017.??.??"]
[EventType "swiss"]
[EventCountry "POR"]
[SourceTitle "playchess.com"]
[Source "ChessBase"]
[SourceQuality "1"]
[TimeControl "5400+30"]

1. e4 {[%emt 0:00:12]} e5 {[%emt 0:00:11]} 2. Nf3 {[%emt 0:00:41]} Nc6 {[%emt 0:00:26]} 3. d4 {[%emt 0:00:18]} exd4 {[%emt 0:00:33]} 4. Bc4 {[%emt 0:00:28]} Qe7 {[%emt 0:02:42]} 5. Qe2 {[%emt 0:01:02]} h6 {[%emt 0:01:07]} 6. b3 {[%emt 0:00:25]} g6 {[%emt 0:00:42]} 7. Bb2 {[%emt 0:00:29]} Bg7 {[%emt 0:00:14]} 8. e5 {[%emt 0:00:11]} Bxe5 {[%emt 0:01:17]} 9. Nxe5 {[%emt 0:00:08]} Qxe5 10. Qxe5+ Nxe5 {[%emt 0:02:16]} 11. Bxd4 {[%emt 0:00:44]} f6 {[%emt 0:01:18]} 12. Nd2 {[%emt 0:00:17]} Kf8 13. O-O {[%emt 0:01:19]} d6 {[%emt 0:06:03]} 14. Rfe1 {[%emt 0:00:35]} Bd7 {[%emt 0:00:29]} 15. Re2 {[%emt 0:01:16]} b6 {[%emt 0:01:32]} 16. Rae1 {[%emt 0:00:33]} Nxc4 {[%emt 0:01:51]} 17. Nxc4 {[%emt 0:00:12]} Rh7 {[%emt 0:01:03]} 18. h3 {[%emt 0:01:41]} Re8 {[%emt 0:00:10]} 19. Rxe8+ {[%emt 0:00:35]} Bxe8 {[%emt 0:00:02]} 20. Nd2 {[%emt 0:00:44]} f5 {[%emt 0:00:16]} 21. c4 {[%emt 0:00:11]} Re7 {[%emt 0:01:06]} 22. Rxe7 {[%emt 0:01:25]} Nxe7 {[%emt 0:00:52]} 23. f4 {[%emt 0:00:26]} h5 {[%emt 0:01:52]} 24. Kf2 {[%emt 0:00:00]} Kf7 {[%emt 0:00:09]} 25. Kf3 {[%emt 0:00:14]} Bc6+ {[%emt 0:00:56]} 26. Kf2 {[%emt 0:00:31]} Bb7 {[%emt 0:03:02]} 27. Nf3 {[%emt 0:01:00]} Bxf3 {[%emt 0:00:29]} 28. Kxf3 {[%emt 0:00:19]} Nc6 {[%emt 0:00:06]} 29. Bc3 {[%emt 0:00:19]} a5 {[%emt 0:00:41]} 30. g4 {[%emt 0:02:39]} hxg4+ {[%emt 0:01:40]} 31. hxg4 {[%emt 0:00:16]} Ke6 {[%emt 0:04:15]} 32. a4 {[%emt 0:01:08]} d5 {[%emt 0:00:51]} 33. gxf5+ {[%emt 0:01:09]} gxf5 {[%emt 0:00:34]} 34. Ke3 {[%emt 0:01:14]} dxc4 {[%emt 0:01:15]} 35. bxc4 {[%emt 0:02:59]} Kd6 {[%emt 0:00:50]} 36. Kd3 {[%emt 0:00:29]} Kc5 {[%emt 0:00:25]} 37. Bd2 {[%emt 0:00:40]} Ne7 {[%emt 0:07:50]} 38. Kc3 {[%emt 0:00:24]} Ng6 {[%emt 0:00:39]} 39. Be3+ {[%emt 0:00:58]} Kc6 {[%emt 0:00:04]} 40. Kb3 {[%emt 0:00:54]} Nf8 {[%emt 0:02:36]} 41. Kc3 {[%emt 0:00:29]} Ne6 {[%emt 0:00:21]} 42. Kb3 {[%emt 0:00:19]} Nc5+ {[%emt 0:01:01]} 43. Ka3 {[%emt 0:01:49]} Kd6 {[%emt 0:04:26]} 44. Bf2 {[%emt 0:02:07]} Ke6 {[%emt 0:00:34]} 45. Bxc5 {[%emt 0:02:38]} bxc5 46. Kb3 Kf6 47. Kc3 Kg6 48. Kd3 Kh5 49. Ke3 Kg4 {Ke4} 1/2-1/2

[Event "XVII Profigaia Open 2017"]
[Site "Gaia"]
[Date "2017.06.18"]
[Round "7"]
[White "Santos, Ricardo"]
[Black "Quinta, Daniel"]
[Result "1/2-1/2"]
[ECO "B01"]
[WhiteElo "2088"]
[BlackElo "2064"]
[Annotator "NA"]
[PlyCount "48"]
[EventDate "2017.??.??"]
[EventType "swiss"]
[EventCountry "POR"]
[SourceTitle "playchess.com"]
[Source "ChessBase"]
[SourceQuality "1"]
[TimeControl "5400+30"]

{[%evp 12,48,-25,0,-5,-58,-60,-41,32767,32767,32767,32767,32767,32767,32767,32767,32767,32767,493,516,710,608,640,32767,774,855,32767,839,32767,796,32767,0,0,0,267,0,32767,32767,0]} 1. e4 {[%emt 0:00:00]} d5 {[%emt 0:01:25]} 2. exd5 {[%emt 0:00:00]} Nf6 {[%emt 0:00:04]} 3. Bb5+ {[%emt 0:00:17]} Bd7 {[%emt 0:00:06]} 4. Bxd7+ {[%emt 0:00:22]} Qxd7 {[%emt 0:00:38]} 5. c4 {[%emt 0:00:35]} c6 {[%emt 0:00:38]} 6. dxc6 {[%emt 0:04:32]} Nxc6 {[%emt 0:07:13]} 7. Nf3 {[%emt 0:00:10]} e5 {[%emt 0:09:05] B01: Scandinavian Defence} 8. d3 {[%emt 0:00:19]} (8. O-O e4 9. Ng5 Bc5 10. Nc3 Qf5 11. Ncxe4 O-O 12. Nxc5 Qxc5 13. d3 Rad8 14. Be3 Qf5 15. Qb3 Rxd3 16. Qxb7 Ne5 17. Rfd1 Rxe3 18. fxe3 Qxg5 19. Re1 Nxc4 20. Rac1 Nxe3 21. Rc8 g6 {½-½ (21) Pandurevic,M (2240)-Vujec,I (2106) Zagreb 2012}) 8... O-O-O {[%emt 0:04:07]} 9. Nc3 $146 {[%emt 0:01:07]} ({Predecessor:} 9. O-O e4 10. Ne1 Bc5 11. Bg5 exd3 12. Nd2 Rhe8 13. a3 Qf5 14. Bh4 g5 15. Bg3 {0-1 (22) Bretscher,R (1672)-Strasser,J (1959) Bad Woerishofen 2009}) 9... Qf5 {[%emt 0:31:42]} 10. O-O {[%emt 0:04:36]} Rxd3 {[%emt 0:00:26]} 11. Qa4 {[%emt 0:04:33]} Bc5 {[%emt 0:01:25]} 12. Be3 {[%emt 0:02:06]} e4 {[%emt 0:02:20]} 13. Nd2 {[%emt 0:06:42]} Ng4 {[%emt 0:11:29]} 14. Bxc5 {[%emt 0:10:32]} Qh5 $2 {[%emt 0:01:05]} (14... Qxc5 $15 15. Ndxe4 Qe5) 15. h3 {[%emt 0:00:06]} Rxh3 {[%emt 0:03:13]} 16. gxh3 {[%emt 0:00:08]} Qxh3 {[%emt 0:00:13]} 17. Bd6 {[%emt 0:00:05]} Nce5 {[%emt 0:00:37]} 18. Bxe5 $1 {[%emt 0:00:22]} Nxe5 {[%emt 0:00:08]} 19. Ncxe4 {[%emt 0:03:21]} Ng4 {[%emt 0:01:08]} 20. Nf3 {[%emt 0:07:07]} Qxf3 {[%emt 0:00:29]} 21. Ng3 $2 {[%emt 0:03:46]} (21. Qxa7 $18 Qxe4 22. Rfe1) 21... Ne3 $1 {[%emt 0:02:26]} 22. fxe3 {[%emt 0:00:59]} Qxg3+ $18 {[%emt 0:00:06]} 23. Kh1 {[%emt 0:00:06]} Qh3+ {[%emt 0:01:00]} 24. Kg1 {[%emt 0:00:08]} Qg3+ {[%emt 0:00:36]} 1/2-1/2

[Event "XVII Profigaia Open 2017"]
[Site "Gaia"]
[Date "2017.06.18"]
[Round "7"]
[White "Margarido, Jose Miguel Teixeir"]
[Black "Fernandes, Claudio Micael Sous"]
[Result "1-0"]
[ECO "D11"]
[WhiteElo "2038"]
[BlackElo "1661"]
[Annotator "NA RC"]
[PlyCount "91"]
[EventDate "2017.??.??"]
[EventType "swiss"]
[EventCountry "POR"]
[SourceTitle "playchess.com"]
[Source "ChessBase"]
[SourceQuality "1"]
[TimeControl "5400+30"]

{[%evp 13,91,28,33,33,32767,32767,32767,-19,13,4,27,14,28,26,32767,32767,32767,32767,32767,32767,32767,32767,32767,32767,32767,32767,32767,0,11,32767,32767,0,0,0,12,0,0,0,42,-125,43,0,-37,-94,-70,-67,163,-20,90,32767,-64,-87,-64,-63,0,-52,52,32767,32767,32767,60,33,93,124,233,304,32767,32767,32767,32767,32767,2144,1740,2950,1904,925,799,779,2601,29990]} 1. d4 {[%emt 0:00:00]} d5 {[%emt 0:03:25]} 2. Nf3 {[%emt 0:00:00]} Nf6 {[%emt 0:00:09]} 3. c4 {[%emt 0:00:10]} c6 {[%emt 0:00:01]} 4. e3 {[%emt 0:02:43]} Bg4 {[%emt 0:03:36]} 5. Nc3 {[%emt 0:00:07]} e6 {[%emt 0:00:01]} 6. h3 {[%emt 0:00:01]} Bh5 {[%emt 0:00:08]} 7. g4 {[%emt 0:06:14]} Bg6 {[%emt 0:00:03]} 8. Ne5 {[%emt 0:00:04] D11: Slav Defence: 3 Nf3 sidelines and 3...Nf6 4 e3 Bg4} Nbd7 {[%emt 0:03:23]} 9. Nxg6 {[%emt 0:01:22]} hxg6 {[%emt 0:00:02]} 10. Bg2 {[%emt 0:05:16]} (10. a3 g5 11. Bd2 g6 12. Qf3 a6 13. Bd3 dxc4 14. Bxc4 b5 15. Bf1 c5 {1-0 (50) Andreikin,D (2736)-Aronian,L (2780) Wijk aan Zee 2017}) 10... Be7 {[%emt 0:08:12]} 11. Qe2 $146 {[%emt 0:00:30]} ({Predecessor:} 11. c5 b6 12. Qa4 bxc5 13. Qxc6 O-O 14. O-O Nb6 15. Qb5 c4 {1-0 (43) Jozefek,M (2205)-Fenik,J (1750) Stara Lubovna 2014}) 11... Qc7 {[%emt 0:08:41]} 12. Bd2 {[%emt 0:07:41]} dxc4 {[%emt 0:00:51]} 13. Qxc4 {[%emt 0:00:32]} Nb6 {[%emt 0:10:21]} 14. Qe2 {[%emt 0:01:48]} e5 {[%emt 0:02:58]} 15. Rc1 {[%emt 0:05:39]} exd4 {[%emt 0:00:02]} 16. Nb5 {[%emt 0:00:22]} Qd7 {[%emt 0:00:02]} 17. Nxd4 {[%emt 0:00:43]} O-O {[%emt 0:10:08]} 18. O-O {[%emt 0:00:41]} Rfe8 {[%emt 0:04:04]} 19. Rfd1 {[%emt 0:06:10]} Bd6 {[%emt 0:00:03]} 20. Be1 {[%emt 0:15:32]} Qe7 {[%emt 0:00:22]} 21. Qc2 {[%emt 0:01:38]} Rad8 {[%emt 0:04:24]} 22. a4 {[%emt 0:08:46]} Nbd5 {[%emt 0:02:56]} 23. Qb3 {[%emt 0:03:06]} Ne4 {[%emt 0:09:27]} 24. Nf3 {[%emt 0:06:48]} (24. Rxc6 $5 bxc6 25. Nxc6 $14) 24... Bc5 {[%emt 0:10:03]} 25. a5 {[%emt 0:08:23]} f5 {[%emt 0:03:03]} 26. g5 $2 {[%emt 0:06:46]} (26. Nd2 $14 {keeps the upper hand.}) 26... Bd6 $2 {[%emt 0:01:14]} (26... f4 $17 27. exf4 Kh7) 27. h4 {[%emt 0:00:15]} Kh7 {[%emt 0:00:59]} 28. Nd2 Nc5 {[%emt 0:01:52]} 29. Qc4 ({White should try} 29. Qa3 $11) 29... Ne4 $2 (29... f4 $17 {and life is bright.} 30. e4 {[#]} f3 $1 {[%mdl 512]} 31. Bxf3 Nf4) 30. Nf1 {[%emt 0:05:31]} (30. Nxe4 $16 fxe4 31. Rd4) 30... f4 {[%emt 0:01:31]} (30... a6 $11 {keeps the balance.}) 31. f3 {[%emt 0:01:31] [#]} Ng3 {[%emt 0:01:19]} (31... Nf2 $1 $19 {[%cal Rf2d1][%mdl 512]} 32. Bxf2 fxe3) 32. Bxg3 {[%emt 0:01:50]} fxg3 {[%emt 0:00:50]} 33. Rd3 $1 {[%emt 0:00:38]} Nb4 {[%emt 0:01:01]} (33... b5 $17 34. axb6 axb6) 34. Rb3 {[%emt 0:00:47]} c5 {[%emt 0:01:51]} (34... b5 $15 35. axb6 axb6) 35. f4 {[%emt 0:01:39]} Qd7 {[%emt 0:01:03]} 36. h5 {[%emt 0:01:35]} gxh5 {[%emt 0:01:07]} 37. Nxg3 {[%emt 0:00:23]} h4 {[%emt 0:00:04]} 38. Ne4 {[%emt 0:02:08]} h3 {[%emt 0:00:01]} (38... Qg4 $16) 39. Bf3 {[%emt 0:00:28]} h2+ {[%emt 0:01:38]} 40. Kxh2 {[%emt 0:00:27]} Nd3 {[%emt 0:00:19]} 41. Rh1 {[%emt 0:00:41]} Nxf4 {[%emt 0:00:13]} 42. exf4 {[%emt 0:00:58]} Bxf4+ {[%emt 0:00:24]} 43. Kg2+ {[%emt 0:00:18]} Kg6 {[%emt 0:00:07]} 44. Qxc5 {[%emt 0:00:57]} (44. Bh5+ $142 Kf5 45. Nf2 Qd5+ 46. Qxd5+ Rxd5 47. Bxe8 b6 48. axb6 axb6 49. Rxb6) 44... Rh8 {[%emt 0:00:52]} 45. Qg1 {[%emt 0:00:49]} Qd3 {[%emt 0:00:32]} 46. Rxd3 {[%emt 0:00:22]} 1-0